Cogmind - Beta 16 @@@ ROGUE MODE // 2025.12.28 @ 02:06:33 Player: Legato Result: Destroyed by S-27 Virus with Autogun Performance ------------- Evolutions (4) 2000 Regions Visited (5) 1000 Robots Destroyed (39) 195 Value Destroyed (1212) 1212 Prototype IDs (3) 60 Alien Tech Used (0) 0 Bonus (0) 0 TOTAL SCORE: 4467 Bonus ------- None Cogmind --------- Core Integrity 0/850 Matter 33/300 Energy 99/100 System Corruption 1% Temperature Cool (0) Movement Core (50) Location -6/Factory Parts ------- > --- POWER (1) -------- (None) > --- PROPULSION (5) --- (None) > --- UTILITY (6) ------ (None) > --- WEAPON (3) ------- (None) > --- INVENTORY (5) ---- Improved Titanium Leg Hardened Light Armor Plating High-powered Tractor Beam Heavy Laser Antimatter Cannon Peak State ------------ > --- POWER ------------ Improved Deuterium Engine > --- PROPULSION ------- Aluminum Leg Aluminum Leg Improved Titanium Leg > --- UTILITY ---------- Power Amplifier Coolant Injector Advanced Visual Processing Unit Advanced Signal Interpreter Light Armor Plating Hardened Light Armor Plating > --- WEAPON ----------- Arc Projector Heavy Laser Antimatter Cannon > --- INVENTORY -------- Light Ion Engine High-powered Tractor Beam [Rating: 44] Favorites ----------- Power Improved Deuterium Engine Engine Improved Deuterium Engine Power Core Nuclear Core Propulsion Aluminum Leg Leg Aluminum Leg Hover Unit Cooled Airjet Flight Unit Nuclear Pulse Thruster Utility Small Storage Unit Device Seismic Detector Storage Small Storage Unit Processor Advanced Visual Processing Unit Hackware Hacking Suite Protection Hardened Medium Armor Plating Weapon EMP Blaster Energy Gun Arc Projector Ballistic Gun Shotgun Ballistic Cannon Improved Light Cannon Launcher EMP Blaster Build | -11 -10 -9 -8 -7 -6 ------- Run | Yrd Mat Mat Mat Fac Fac Slots Evolved 8 | . . 2 2 2 2 Power . | . . . . . . Propulsion 3 | . . 1 1 . 1 Utility 4 | . . 1 1 2 . Weapon 1 | . . . . . 1 Parts Attached 60 | 7 1 8 19 13 12 Power 7 | 1 . 2 3 1 . Engine 5 | 1 . 2 1 1 . Core 2 | . . . 2 . . Reactor . | . . . . . . Propulsion 14 | 2 . 3 4 2 3 Treads . | . . . . . . Leg 12 | 2 . 3 4 2 1 Wheel . | . . . . . . Hover 1 | . . . . . 1 Flight 1 | . . . . . 1 Utility 25 | 2 . 1 8 7 7 Device 8 | 1 . . 2 3 2 Storage 2 | 1 . . . . 1 Processor 5 | . . . 1 2 2 Hackware 2 | . . . 1 . 1 Protection 8 | . . 1 4 2 1 Artifact . | . . . . . . Weapon 14 | 2 1 2 4 3 2 Energy Gun 8 | 2 . . 4 1 1 Energy Cannon . | . . . . . . Ballistic Gun 2 | . 1 1 . . . Ballistic Cannon 3 | . . . . 2 1 Launcher 1 | . . 1 . . . Special Weapon . | . . . . . . Impact Weapon . | . . . . . . Slashing Weapon . | . . . . . . Piercing Weapon . | . . . . . . Special Melee Weapon . | . . . . . . Unidentified Prototypes 3 | . . . 1 . 2 Corrupted Parts 2 | . . . 2 . . System Corruption 11 | . . . 11 . . Parts Lost 19 | . . . 9 4 6 Power 4 | . . . 2 . 2 Propulsion 8 | . . . 4 . 4 Utility 4 | . . . 1 3 . Weapon 3 | . . . 2 1 . Highest Loss Streak 5 | . . . 5 4 4 To Critical Strikes . | . . . . . . Average Backups 5 | 3 7 7 7 3 2 Power 1 | . 2 2 1 . . Propulsion 1 | 2 3 3 1 . . Utility 2 | . . 1 3 2 . Weapon . | . 1 1 . . . Tool/Special . | . . . . . . Unused Backups 12 | . 4 3 4 . 1 Power 2 | . . 1 1 . . Propulsion 5 | . 4 1 . . . Utility 4 | . . . 3 . 1 Weapon 1 | . . 1 . . . Tool/Special . | . . . . . . Average Slot Usage (%) 79 | . 100 98 94 48 59 Engine 6 | . 14 11 2 7 3 Core 1 | . . . 5 . . Leg 21 | . 28 32 34 1 9 Device 9 | . 14 11 6 15 5 Storage 6 | . 14 11 8 . 1 Processor 6 | . . . 6 10 10 Protection 8 | . . 10 11 3 9 Energy Gun 4 | . 14 . 4 . 8 Ballistic Gun 5 | . 13 12 5 . . Ballistic Cannon 2 | . . . . 9 4 Launcher 3 | . . 8 5 . . Peak Build Rating 44 | 7 7 12 25 32 44 Average Rating 18 | 5 7 11 18 22 28 On Entrance 8 | . 7 7 12 1 25 Avg Prop Armor Cover (%) 10 | . . . . . 10 Naked Turns 63 | . . . 10 . 53 Heaviest Build 38 | 13 13 19 31 37 38 Greatest Support 43 | 20 20 33 43 20 40 Greatest Overweight (x) 12 | 2 . . . 12 4 Average Overweight (x) . | . . . . 5 . Largest Inventory Capacity 8 | 8 8 8 8 5 5 Average Capacity 6 | 7 8 8 7 5 5 Most Carried 8 | 6 8 8 8 4 5 Average Carried 5 | 4 7 7 7 3 2 Final Capacity 8 | 8 8 8 5 5 5 Final Carried 8 | 6 8 8 5 1 5 Class Distribution -------------------- 55% | Mutant 30% | Scavenger-Mutant 12% | Scavenger-Tank Dominant Class ---------------- Mutant | -10/Materials Mutant | -9/Materials Scavenger-Mutant | -8/Materials Mutant | -7/Factory Scavenger-Tank | -6/Factory Resources | -11 -10 -9 -8 -7 -6 ----------- Run | Yrd Mat Mat Mat Fac Fac Matter Collected 905 | 72 105 315 331 79 3 Remotely . | . . . . . . Salvage Created 1419 | 24 11 444 831 109 . Parts 93 | 2 4 36 45 6 . Haulers Intercepted . | . . . . . . Recyclers Shooed 6 | 1 . . 5 . . Parts Field Recycled . | . . . . . . Retrieved Matter . | . . . . . . Parts Self-Destructed . | . . . . . . Prevented . | . . . . . . Parts Restored . | . . . . . . Kills | -11 -10 -9 -8 -7 -6 ------- Run | Yrd Mat Mat Mat Fac Fac Combat Hostiles Destroyed 29 | . . 13 13 3 . Guns 9 | . . 6 3 . . Cannons 3 | . . . . 3 . AOE 16 | . . 7 9 . . Classes Destroyed 9 | 1 1 4 3 . . Worker 1 | . . . 1 . . Builder 4 | . 1 1 2 . . Tunneler 1 | 1 . . . . . Recycler 1 | . . . 1 . . Watcher 3 | . . 3 . . . Swarmer 7 | . . 7 . . . Grunt 15 | . . 5 7 3 . Duelist 1 | . . 1 . . . Sentry 6 | . . . 6 . . Best Kill Streak 9 | 1 1 9 7 2 . Combat Bots Only 8 | . . 8 4 2 . Max Kills in Single Turn 3 | 1 1 3 2 1 . Gunslinging . | . . . . . . Exploded 2 | . . 2 2 . . Melee . | . . . . . . Uniques/NPCs Destroyed . | . . . . . . Combat | -11 -10 -9 -8 -7 -6 -------- Run | Yrd Mat Mat Mat Fac Fac Hostile Shots Fired 494 | . . 15 143 31 305 Missed 219 | . . 7 50 6 156 Hits 275 | . . 8 93 25 149 Projectile 275 | . . 8 93 25 149 AOE 3 | . . . . 3 . Critical Strikes 7 | . . . 5 2 . Part Disruptions 2 | . . . 2 . . Damage Taken 3849 | . . 248 1637 549 1415 Core 1225 | . . 30 246 87 862 Absorbed by Shields . | . . . . . . Redirected to Shielding 42 | . . 16 17 . 9 Core Remaining (%) 86 | 100 100 92 55 87 . Volleys Fired 79 | 2 1 18 47 5 6 Largest 3 | 2 2 2 2 2 3 Hottest 157 | 100 70 56 110 102 157 Shots Fired 133 | 4 2 36 63 10 18 Gun 84 | 4 2 20 45 1 12 Cannon 15 | . . . . 9 6 Launcher 34 | . . 16 18 . . Special . | . . . . . . Kinetic 49 | . 1 20 13 9 6 Thermal 37 | 4 1 . 25 1 6 Explosive . | . . . . . . Electromagnetic 47 | . . 16 25 . 6 Robot Hit Streak 14 | 1 2 7 14 3 6 Robot Miss Streak 6 | 2 . 3 3 2 6 Penetration Max . | . . . . . . Secondary Targets . | . . . . . . Shots Hit Robots 82 | 1 1 20 47 5 8 Core Hits 71 | 2 1 24 34 5 5 Critical Kills . | . . . . . . Critical Parts Destroyed . | . . . . . . Critical Strikes 1 | . . . . 1 . Blast 1 | . . . . 1 . Melee Attacks . | . . . . . . Impact . | . . . . . . Slashing . | . . . . . . Piercing . | . . . . . . Sneak Attacks . | . . . . . . Combat Hostiles . | . . . . . . Follow-up Attacks . | . . . . . . Damage Inflicted 2669 | 31 16 695 1457 243 227 Guns 690 | 13 13 210 352 . 102 Cannons 321 | . . . . 243 78 Explosions 1517 | . . 446 1071 . . Melee . | . . . . . . Ramming 141 | 18 3 39 34 . 47 Kinetic 633 | . . 210 102 243 78 Thermal 609 | 13 13 69 457 . 57 Explosive 56 | . . . 56 . . Electromagnetic 1230 | . . 377 808 . 45 Impact . | . . . . . . Slashing . | . . . . . . Piercing . | . . . . . . Highest Corruption 16 | . 1 3 16 . 1 Average Corruption 4 | . 1 1 13 . 1 Corruption Purged . | . . . . . . Corruption Blocked . | . . . . . . Effects 29 | . 1 5 19 . 4 Message Errors 10 | . . 4 4 . 2 Matter Fused 8 | . 1 1 4 . 2 Heat Flow Errors 1 | . . . 1 . . Energy Discharges 1 | . . . 1 . . Parts Rejected 2 | . . . 2 . . Data Loss (minor) 5 | . . . 5 . . Misdirections 1 | . . . 1 . . Weapon Failures 1 | . . . 1 . . Overload Shots . | . . . . . . Overflow Damage 75 | . . 10 65 . . Projectiles . | . . . . . . Explosions 75 | . . 10 65 . . Melee . | . . . . . . Knockbacks 5 | . . 1 . 4 . Impact 1 | . . 1 . . . Kinetic 3 | . . . . 3 . Secondary 1 | . . . . 1 . Self-Inflicted Damage 498 | . . 183 299 . 16 Shots 31 | . . 13 18 . . Rammed 6 | . . . . . 6 Targets Rammed 22 | 2 2 5 6 . 7 Kicked 16 | 2 2 5 6 . 1 Crushed . | . . . . . . Highest Temperature 234 | 78 30 . 234 67 166 Average Temperature 51 | 39 18 . 48 33 74 Received Heat Transfer 1047 | . . . 612 207 228 Siege Activations . | . . . . . . Martial Activations . | . . . . . . Shielding Activations . | . . . . . . Robots Disrupted . | . . . . . . Combat Hostiles . | . . . . . . Robots Corrupted . | . . . . . . Combat Hostiles . | . . . . . . Parts Fried 2 | . . . 2 . . Impact Corruptions . | . . . . . . Robots Melted 1 | . . . 1 . . Combat Hostiles 1 | . . . 1 . . Parts Melted 3 | . . . 3 . . Heat Transferred 1425 | 37 37 100 1140 . 111 Parts Sabotaged . | . . . . . . Parts Stolen . | . . . . . . Parts Stripped . | . . . . . . Power Chain Reactions 9 | . . 1 8 . . Alert | -11 -10 -9 -8 -7 -6 ------- Run | Yrd Mat Mat Mat Fac Fac Maximum Alert Level 1 | . . 1 1 . . Low Security (%) 97 | 100 100 86 99 100 100 Level 1 2 | . . 13 . . . Level 2 . | . . . . . . Level 3 . | . . . . . . Level 4 . | . . . . . . Level 5 . | . . . . . . High Security . | . . . . . . Max Security . | . . . . . . Peak Influence 310 | . 19 310 201 71 90 Initial 124 | . . . 124 71 1 Average 55 | . 2 72 117 15 15 Influence Increases 1219 | 5 24 441 480 84 185 Destroy 0b10 Robot/C 580 | . . 260 260 60 . Destroy 0b10 Robot/NC 50 | 5 5 20 20 . . Destroy Leader 146 | . . 46 90 10 . Successful Hack 54 | . 4 5 . 14 31 Disable Machine 150 | . . 75 75 . . Destroy Structure 74 | . . 35 35 . 4 Partial Spotted 15 | . . . . . 15 Lose Combat Pursuer 150 | . 15 . . . 135 Influence Decreases 1158 | 5 24 147 616 238 128 Entered New Map 260 | . . . 170 87 3 Time Decay 736 | 5 24 147 356 111 93 Lost Part 162 | . . . 90 40 32 Squads Dispatched 14 | . 1 2 5 2 4 Investigation 5 | . . . 2 1 2 Extermination 1 | . . . . . 1 Reinforcement 7 | . 1 2 2 1 1 Assault . | . . . . . . Garrison 1 | . . . 1 . . Intercept . | . . . . . . Searches Triggered . | . . . . . . Construction Impeded 2 | . . 1 1 . . Haulers Reinforced . | . . . . . . Active Scanning Responses . | . . . . . . Cargo Convoy Interrupts . | . . . . . . Stealth | -11 -10 -9 -8 -7 -6 --------- Run | Yrd Mat Mat Mat Fac Fac Distress Signals 4 | . 1 1 2 . . Communications Jammed . | . . . . . . Distress Signals . | . . . . . . Times Spotted 80 | . 7 18 26 6 23 Peak Tracking Total 11 | . 2 5 7 3 11 Tactical Retreats 6 | . 1 . . . 5 Traps | -11 -10 -9 -8 -7 -6 ------- Run | Yrd Mat Mat Mat Fac Fac Traps Triggered 3 | . 1 1 1 . . Indirectly 1 | . . 1 . . . Trap Hack Attempts . | . . . . . . Triggered . | . . . . . . Disarmed . | . . . . . . Reprogrammed . | . . . . . . Reused . | . . . . . . Traps Extracted . | . . . . . . Installed . | . . . . . . Triggered . | . . . . . . Machines | -11 -10 -9 -8 -7 -6 ---------- Run | Yrd Mat Mat Mat Fac Fac Machines Disabled 10 | . . 5 5 . . Max in Single Turn 3 | . . 3 3 . . Machines Repaired . | . . . . . . Machines Dismantled . | . . . . . . Machines Sabotaged . | . . . . . . Overloaded Fab Kills . | . . . . . . Hacking | -11 -10 -9 -8 -7 -6 --------- Run | Yrd Mat Mat Mat Fac Fac Machines Accessed 7 | . 1 2 1 1 2 Terminals 7 | . 1 2 1 1 2 Fabricators . | . . . . . . Repair Stations . | . . . . . . Recycling Units . | . . . . . . Scanalyzers . | . . . . . . Garrison Access . | . . . . . . Total Hacks 15 | . 3 3 2 2 5 Successful 6 | . 1 2 . 1 2 Failed 9 | . 2 1 2 1 3 Catastrophic 5 | . 1 . 2 1 1 Database Lockouts . | . . . . . . Manual 6 | . 2 1 2 1 . Terminals 15 | . 3 3 2 2 5 Fabricators . | . . . . . . Repair Stations . | . . . . . . Recycling Units . | . . . . . . Scanalyzers . | . . . . . . Garrison Access . | . . . . . . Terminal Hacks 6 | . 1 2 . 1 2 Record 2 | . . . . . 2 Locate Traps 1 | . 1 . . . . Recall Reinforcements 1 | . . 1 . . . Zone Layout 2 | . . 1 . 1 . Fabricator Hacks . | . . . . . . Repair Station Hacks . | . . . . . . Recycling Unit Hacks . | . . . . . . Scanalyzer . | . . . . . . Garrison Access Hacks . | . . . . . . Unauthorized Hacks . | . . . . . . Terminals . | . . . . . . Fabricators . | . . . . . . Repair Stations . | . . . . . . Recycling Units . | . . . . . . Scanalyzers . | . . . . . . Garrison Access . | . . . . . . Data Cores Recovered . | . . . . . . Used . | . . . . . . Hacking Detections 6 | . 1 1 1 1 2 Full Trace Events 5 | . 1 . 1 1 2 Feedback Events 1 | . . . . . 1 Corruption 1 | . . . . . 1 Feedback Blocked . | . . . . . . Robot Schematics Acquired . | . . . . . . Robots Built . | . . . . . . Authchips . | . . . . . . Time . | . . . . . . Total Robot Build Rating . | . . . . . . Part Schematics Acquired . | . . . . . . Parts Built . | . . . . . . Authchips . | . . . . . . Time . | . . . . . . Total Part Build Rating . | . . . . . . Part Studies Acquired . | . . . . . . Parts Repaired . | . . . . . . Time . | . . . . . . Parts Recycled . | . . . . . . Recycled Matter . | . . . . . . Retrieved Matter . | . . . . . . Retrieved Components . | . . . . . . Parts Scanalyzed . | . . . . . . Part Schematics Acquired . | . . . . . . Parts Damaged . | . . . . . . Bothacking | -11 -10 -9 -8 -7 -6 ------------ Run | Yrd Mat Mat Mat Fac Fac Used RIF Installer . | . . . . . . Robots Hacked . | . . . . . . Non-combat . | . . . . . . Combat . | . . . . . . Robot Hacks Applied . | . . . . . . Relay Couplers Released . | . . . . . . Fabnet Peak Effective % . | . . . . . . Robots Rewired . | . . . . . . Allies Hacked . | . . . . . . Hacks Repelled . | . . . . . . Allies | -11 -10 -9 -8 -7 -6 -------- Run | Yrd Mat Mat Mat Fac Fac Total Allies . | . . . . . . Largest Group . | . . . . . . Highest-Rated Group . | . . . . . . Highest-Rated Ally . | . . . . . . Total Orders . | . . . . . . Ally Attacks . | . . . . . . Total Damage . | . . . . . . Kills . | . . . . . . Allies Corrupted . | . . . . . . Allies Melted . | . . . . . . Intel | -11 -10 -9 -8 -7 -6 ------- Run | Yrd Mat Mat Mat Fac Fac Active Infowar (turns) 2129 | 27 187 565 528 331 491 Optics 822 | . . . . 331 491 Seismic 1307 | 27 187 565 528 . . ECM 13 | . . . . . 13 Robot Analysis Total . | . . . . . . Derelict Logs Recovered . | . . . . . . Drone Launches . | . . . . . . Drone Recoveries . | . . . . . . Exploration | -11 -10 -9 -8 -7 -6 ------------- Run | Yrd Mat Mat Mat Fac Fac Turns Passed 2741 | 91 187 565 809 480 609 Spaces Moved 1703 | 56 136 335 463 130 583 Core 247 | 4 . . 20 114 109 Treads . | . . . . . . Legs 1211 | 52 136 335 443 16 229 Wheels . | . . . . . . Hover 122 | . . . . . 122 Flight 123 | . . . . . 123 Fastest Speed 40 | 50 120 120 50 100 40 Average Speed 127 | 119 120 120 116 339 95 Slowest Speed 650 | 150 120 120 120 650 250 Overloaded Moves . | . . . . . . Propulsion Burnouts . | . . . . . . Robots Hopped 1 | . . . . . 1 Potential Cave-ins . | . . . . . . Cave-ins Triggered . | . . . . . . Exploration Rate (%) 23 | 5 31 33 44 4 23 Regions Visited 5 Branch Regions . Pre-discovered Areas . | . . . . . . Known Exits Taken . | . . . . . . Unknown Exits Taken 5 | 1 1 1 1 1 . Scrap Searched . | . . . . . . Spaces Dug . | . . . . . . Terrain Destroyed 78 | . . 37 37 . 4 Melee . | . . . . . . Projectile 4 | . . . . . 4 AOE 74 | . . 37 37 . . Terrain Rammed . | . . . . . . Walls Destroyed . | . . . . . . Machines Disabled . | . . . . . . Actions | -11 -10 -9 -8 -7 -6 --------- Run | Yrd Mat Mat Mat Fac Fac Total 2128 | 72 159 463 661 155 618 Wait 194 | . 8 87 99 . . Move 1696 | 55 135 334 462 129 581 Hop 1 | . . . . . 1 Pick Up 29 | 6 7 4 11 . 1 Fast Attach 38 | 7 . 2 8 9 12 Attach 20 | . . 1 9 8 2 Detach 8 | . . . . 3 5 Swap 18 | . 1 5 11 1 . Drop 23 | . 5 7 8 . 3 Fire 79 | 2 1 18 47 5 6 Melee . | . . . . . . Ram 6 | . . . . . 6 Kick 16 | 2 2 5 6 . 1 Crush . | . . . . . . Escape Stasis . | . . . . . . Rewire . | . . . . . . Trap . | . . . . . . Miscellaneous . | . . . . . . Route ------- -11/Scrapyard -10/Materials (discovered 2 exits: *Mat / [*Min]) -9/Materials -8/Materials -7/Factory -6/Factory History --------- Turn | Location | Event 28 | -11/Scrapyard | Discovered new exit (range 16) 92 | -11/Scrapyard | Entered Materials 93 | -10/Materials | Met a group of wandering Federalists 229 | -10/Materials | Discovered new exit (range 10) 250 | -10/Materials | Discovered new exit (range 12) 279 | -10/Materials | Entered another Materials area 279 | -9/Materials | Evolved 2 slots: Propulsion x1, Utility x1 303 | -9/Materials | Build established: Mutant 820 | -9/Materials | Destroyed 8 combat bots 840 | -9/Materials | Discovered new exit (range 5) 844 | -9/Materials | Entered another Materials area 844 | -8/Materials | Evolved 2 slots: Propulsion x1, Utility x1 1147 | -8/Materials | Build established: Scavenger-Mutant 1336 | -8/Materials | Garrison activated, responded to threat 1343 | -8/Materials | System corruption reached 10% 1372 | -8/Materials | Lost 5 parts (1p2n2w) 1643 | -8/Materials | Released all parts (10) 1648 | -8/Materials | Discovered new exit (range 11) 1653 | -8/Materials | Entered Factory 1653 | -7/Factory | Evolved 2 slots: Utility x2 1934 | -7/Factory | Build established: Mutant 2045 | -7/Factory | Discovered new exit (range 13) 2128 | -7/Factory | Lost 4 parts (3u1w) 2133 | -7/Factory | Entered another Factory area 2133 | -6/Factory | Evolved 2 slots: Propulsion x1, Weapon x1 2469 | -6/Factory | Build established: Scavenger-Tank 2550 | -6/Factory | Released all parts (6) 2575 | -6/Factory | Lost 4 parts (2p2n) 2633 | -6/Factory | Spotted B-75 Beast 2655 | -6/Factory | Core integrity fell below 50% 2701 | -6/Factory | Released all parts (4) 2704 | -6/Factory | Core integrity fell below 20% 2742 | -6/Factory | Destroyed by S-27 Virus with Autogun Last Messages --------------- 02695_ K-01 Serf destroyed. 02697_ Nuclear Pulse Thruster destroyed. 02698_ U-05 Engineer builds a Door. 02699_ K-01 Serf cleans the Fabricator. 02701_ Released Enh. Optical Array. 02701_ Released Hacking Suite. 02701_ Released Energy Well. 02701_ Released Imp. Utility Shielding. 02705_ U-05 Engineer works on Subcomponent Replicator. 02706_ O-16 Technician: "IFF HANDSHAKE FAILED. SECURING TERMINAL." 02710_ U-05 Engineer works on Subcomponent Replicator. 02718_ ALERT: Hostiles spotted, dispatching reinforcements to Terminal F005. 02720_ K-01 Serf cleans the Nuclear Reactor. 02722_ |LWVHU3BRLFU%1=M:QMG,9,0WE#SCJ 02730_ K-01 Serf cleans the Neutrino Reactor. Map ----- +----------------------------------------------------+ | ?????????????????????????????????????????????????? | | ?????????????????????????????????????????????????? | | ?????????????????????????????????????????????????? | | ?????????????????????????????????????????????????? | | ?????????????????????????????????????????????????? | | ?????????????????????????????????????????????????? | | ?????????????????????????????????????????????????? | | ?????????????????????????????????????????????????? | | ?????????????????????????????????????????????????? | | ?????????????????????????????????????????????????? | | ????????????????????????? ?????????????????????? | | ????????????????????????? ???????????????????? | | ????????????????????????? +??????????????????? | | ????????????????????????? #??????????????????? | | ????????????????????????? #??????????????????? | | ????????????????????????? #??????????????????? | | ????????????????????????? #??????????????????? | | ????????????????????????# #??????????????????? | | ????????????????????????# #??????????????????? | | ????????????????????????# #??????????????????? | | ???????????????????????? #??????????????????? | | ????????????????????????T #??????????????????? | | ????????????????????????# #??????????????????? | | ????????????????????????# #??????????????????? | | ????????????????????????# #??????????????????? | | ????????????????????????#@ R#??????????????????? | | ????????????????????????# +??????????????????? | | ????????????????????????# #??????????????????? | | ??????????? ????????????# #??????????????????? | | ?????????#+#/########???# #??????????????????? | | ??????#### #???# #??????????????????? | | ??????#""" #???# k #??????????????????? | | ??????#"F" """ ]] #???# #??????????????????? | | ???????" """ ]] #???# #??????????????????? | | ??????#""" """ ] #???# #??????????????????? | | ???????""" #???#ss #??????????????????? | | ?????????# ##### #??????????????????? | | ?????????# #??????????????????? | | ?????????# #??????????????????? | | ?????????+ """ """ """ """ #??????????????????? | | ?????????# """ """ """ "Y" #??????????????????? | | ?????????# """ """ """ " " #??????????????????? | | ?????????# #??????????????????? | | ?????????# """ """ """ """ #??????????????????? | | ?????????# """ """ """ """ ???????????????? | | ?????????# """ """ """ """ ???????????????? | | ?????????# ??????????????? | | ???????? / ??????????????? | | ???????? # ??????????????? | | ?????????# ###+######+######?????????????????? | +----------------------------------------------------+ Best States ------------- Heat Dissipation 37 Coolant Potential 65 Energy Generation 18 Energy Capacity 450 Matter Stores 300 Matter Capacity 300 Sight Range 22 Terrain Scan Density 10 ECM Strength 2 Power Amplification 20 Base Temperature (-) 100 Armor Coverage 450 Power Shielding 33 Utility Shielding 66 Evasion (%) 62 Targeting Accuracy 6 Kinecelleration 30 Offensive Hacking 10 Item Schematics ----------------- None Robot Schematics ------------------ None Fabricated ------------ Nothing Repaired ---------- Nothing Studied --------- None Alien Tech Used ----------------- None Achievements -------------- None Challenges ------------ None Game ------ Seed PartitionTrapPlatform Manual? 0 Play Time 00:37:24 Cumulative 12.9 hours Start 2025.12.28 @ 01:08:18 End 2025.12.28 @ 02:06:33 Sessions 8 Manual Loads 0 Difficulty Rogue Special Mode None Game No. 22 Rogue 22 Adventurer 0 Explorer 0 Win Type - Total 0 Types 0/0/0/0/0/0/0/0/0/0 Lore% 11 Gallery% 19 Achievement% 14 Wizard Run 0 Options --------- Layout 1 ASCII 0 Keyboard 0 Movement Arrows Keybinds 1 Fullscreen 1 Font 24/Proggy Map View 50x35 Zoom Use 0% Tactical HUD 1 Map Filters NONE Filters NONE Steam 1 RUN: e5a38868-50ef-42c3-b092-51ba2f564f84